Cogmind - Beta 16 @@@ ROGUE MODE // 2026.01.01 @ 22:58:42 Player: Triffids Result: Self-destructed Performance ------------- Evolutions (1) 500 Regions Visited (2) 400 Robots Destroyed (38) 190 Value Destroyed (720) 720 Prototype IDs (2) 40 Alien Tech Used (0) 0 Bonus (0) 0 TOTAL SCORE: 1850 Bonus ------- None Cogmind --------- Core Integrity 333/400 Matter 290/300 Energy 250/250 System Corruption 0% Temperature Cool (0) Movement Walking (190) Ox1 Location -9/Materials Parts ------- > --- POWER (1) -------- Ion Engine > --- PROPULSION (2) --- Aluminum Leg Aluminum Leg > --- UTILITY (4) ------ Heat Sink Medium Storage Unit Sensor Array Signal Interpreter > --- WEAPON (2) ------- Heavy EM Pulse Gun Ion Cannon > --- INVENTORY (10) --- Light Ion Engine Aluminum Leg Aluminum Leg Improved Aluminum Leg Medium Matter Pod (100) Structural Scanner Improved Terrain Scanner Terrain Scan Processor Medium Armor Plating Plasma Cutter Peak State ------------ > --- POWER ------------ Ion Engine > --- PROPULSION ------- Aluminum Leg Aluminum Leg > --- UTILITY ---------- Medium Storage Unit Structural Scanner Sensor Array Signal Interpreter > --- WEAPON ----------- Heavy EM Pulse Gun Ion Cannon > --- INVENTORY -------- Aluminum Leg Aluminum Leg Improved Aluminum Leg Medium Matter Pod Improved Terrain Scanner Terrain Scan Processor Seismic Detector Heavy EM Pulse Gun Mining Laser [Rating: 13] Favorites ----------- Power Ion Engine Engine Ion Engine Propulsion Aluminum Leg Leg Aluminum Leg Utility Medium Storage Unit Device Seismic Detector Storage Medium Storage Unit Processor Signal Interpreter Weapon Heavy EM Pulse Gun Energy Gun Heavy EM Pulse Gun Energy Cannon Ion Cannon Ballistic Gun Light Assault Rifle Special Weapon Mining Laser Build | -11 -10 -9 ------- Run | Yrd Mat Mat Slots Evolved 2 | . . 2 Power . | . . . Propulsion . | . . . Utility 2 | . . 2 Weapon . | . . . Parts Attached 34 | 7 13 14 Power 4 | 1 1 2 Engine 4 | 1 1 2 Core . | . . . Reactor . | . . . Propulsion 10 | 2 4 4 Treads . | . . . Leg 10 | 2 4 4 Wheel . | . . . Hover . | . . . Flight . | . . . Utility 9 | 2 1 6 Device 5 | 1 . 4 Storage 3 | 1 1 1 Processor 1 | . . 1 Hackware . | . . . Protection . | . . . Artifact . | . . . Weapon 11 | 2 7 2 Energy Gun 7 | 1 5 1 Energy Cannon 1 | . . 1 Ballistic Gun 2 | 1 1 . Ballistic Cannon . | . . . Launcher . | . . . Special Weapon 1 | . 1 . Impact Weapon . | . . . Slashing Weapon . | . . . Piercing Weapon . | . . . Special Melee Weapon . | . . . Unidentified Prototypes . | . . . Parts Lost 6 | . 2 4 Power 2 | . 1 1 Propulsion 1 | . . 1 Utility . | . . . Weapon 3 | . 1 2 Highest Loss Streak 2 | . 2 2 To Critical Strikes . | . . . Average Backups 8 | 3 8 9 Power . | . . . Propulsion 2 | . 2 2 Utility 3 | . 3 4 Weapon 1 | 1 2 1 Tool/Special . | . . . Unused Backups 15 | . 8 7 Power 1 | . 1 . Propulsion 4 | . 1 3 Utility 5 | . 2 3 Weapon 4 | . 4 . Tool/Special 1 | . . 1 Average Slot Usage (%) 99 | . 99 98 Engine 12 | . 13 10 Leg 25 | . 28 21 Device 17 | . 14 22 Storage 12 | . 14 11 Processor 4 | . . 10 Energy Gun 16 | . 19 12 Energy Cannon 3 | . . 9 Ballistic Gun 5 | . 8 . Peak Build Rating 13 | 7 10 13 Average Rating 9 | 5 8 12 On Entrance 5 | . 7 10 Avg Prop Armor Cover (%) 34 | 34 . . Naked Turns . | . . . Heaviest Build 26 | 12 22 26 Greatest Support 20 | 20 20 20 Greatest Overweight (x) 1 | . 1 1 Average Overweight (x) . | . . . Largest Inventory Capacity 10 | 8 10 10 Average Capacity 9 | 7 8 10 Most Carried 10 | 5 10 10 Average Carried 8 | 3 8 9 Final Capacity 10 | 8 10 10 Final Carried 10 | 5 10 10 Class Distribution -------------------- 51% | Scavenger-Mutant 29% | Mutant 19% | Scavenger-Skirmisher Dominant Class ---------------- Scavenger-Mutant | -10/Materials Scavenger-Skirmisher | -9/Materials Resources | -11 -10 -9 ----------- Run | Yrd Mat Mat Matter Collected 769 | 280 359 130 Remotely . | . . . Salvage Created 1103 | 123 438 542 Parts 92 | 14 39 39 Haulers Intercepted 1 | . 1 . Recyclers Shooed 1 | . . 1 Parts Field Recycled . | . . . Retrieved Matter . | . . . Parts Self-Destructed . | . . . Prevented . | . . . Parts Restored . | . . . Kills | -11 -10 -9 ------- Run | Yrd Mat Mat Combat Hostiles Destroyed 26 | . 12 14 Guns 20 | . 12 8 Cannons 2 | . . 2 AOE 4 | . . 4 Classes Destroyed 9 | 2 5 2 Worker 2 | . 1 1 Builder 4 | . 2 2 Tunneler 3 | 3 . . Hauler 1 | . 1 . Recycler 2 | 1 . 1 Swarmer 12 | . 6 6 Grunt 12 | . 6 6 Duelist 1 | . . 1 Sentry 1 | . . 1 Best Kill Streak 5 | 3 3 5 Combat Bots Only 4 | . 3 4 Max Kills in Single Turn 4 | 1 1 4 Gunslinging . | . . . Exploded 3 | . . 3 Melee . | . . . Uniques/NPCs Destroyed . | . . . Combat | -11 -10 -9 -------- Run | Yrd Mat Mat Hostile Shots Fired 156 | . 88 68 Missed 57 | . 34 23 Hits 99 | . 54 45 Melee 4 | . . 4 Projectile 95 | . 54 41 Critical Strikes 3 | . 2 1 Damage Taken 1189 | . 598 591 Core 217 | . 150 67 Absorbed by Shields . | . . . Core Remaining (%) 70 | 100 40 . Volleys Fired 108 | 10 64 34 Largest 2 | 2 2 2 Hottest 105 | 60 100 105 Shots Fired 207 | 20 125 62 Gun 170 | 20 122 28 Cannon 34 | . . 34 Launcher . | . . . Special 3 | . 3 . Kinetic 73 | 10 63 . Thermal 67 | . 33 34 Explosive . | . . . Electromagnetic 67 | 10 29 28 Robot Hit Streak 11 | 2 8 11 Robot Miss Streak 7 | 2 7 4 Penetration Max . | . . . Secondary Targets 2 | . 2 . Max Gunslinging Chain 1 | . 1 . Shots Hit Robots 119 | 9 71 39 Core Hits 53 | 5 26 22 Critical Kills . | . . . Critical Parts Destroyed . | . . . Critical Strikes 1 | 1 . . Corrupt 1 | 1 . . Melee Attacks . | . . . Impact . | . . . Slashing . | . . . Piercing . | . . . Sneak Attacks . | . . . Combat Hostiles . | . . . Follow-up Attacks . | . . . Damage Inflicted 1859 | 116 790 953 Guns 1184 | 116 757 311 Cannons 438 | . . 438 Explosions 237 | . 33 204 Melee . | . . . Ramming . | . . . Kinetic 304 | 24 280 . Thermal 895 | . 253 642 Explosive . | . . . Electromagnetic 660 | 92 257 311 Impact . | . . . Slashing . | . . . Piercing . | . . . Highest Corruption . | . . . Average Corruption . | . . . Corruption Purged . | . . . Corruption Blocked . | . . . Overload Shots . | . . . Overflow Damage 4 | . . 4 Projectiles 4 | . . 4 Explosions . | . . . Melee . | . . . Knockbacks . | . . . Impact . | . . . Kinetic . | . . . Secondary . | . . . Self-Inflicted Damage 16 | . . 16 Shots 1 | . . 1 Rammed . | . . . Targets Rammed . | . . . Kicked . | . . . Crushed . | . . . Highest Temperature 336 | 40 210 336 Average Temperature 58 | 20 42 92 Received Heat Transfer 384 | . 237 147 Siege Activations . | . . . Martial Activations . | . . . Shielding Activations . | . . . Robots Disrupted . | . . . Combat Hostiles . | . . . Robots Corrupted . | . . . Combat Hostiles . | . . . Parts Fried 2 | . 2 . Impact Corruptions . | . . . Robots Melted . | . . . Combat Hostiles . | . . . Parts Melted 5 | . . 5 Heat Transferred 1603 | . 600 1003 Parts Sabotaged . | . . . Parts Stolen . | . . . Parts Stripped . | . . . Power Chain Reactions 3 | . 1 2 Alert | -11 -10 -9 ------- Run | Yrd Mat Mat Maximum Alert Level 1 | . . 1 Low Security (%) 94 | 100 100 85 Level 1 5 | . . 14 Level 2 . | . . . Level 3 . | . . . Level 4 . | . . . Level 5 . | . . . High Security . | . . . Max Security . | . . . Peak Influence 247 | 10 136 247 Initial 19 | . . 19 Average 62 | 1 62 77 Influence Increases 844 | 20 396 428 Destroy 0b10 Robot/C 520 | . 240 280 Destroy 0b10 Robot/NC 60 | 20 20 20 Destroy Leader 112 | . 52 60 Successful Hack 9 | . 5 4 Disable Machine 45 | . 30 15 Destroy Structure 23 | . 4 19 Lose Combat Pursuer 75 | . 45 30 Influence Decreases 629 | 20 349 260 Entered New Map 28 | . . 28 Time Decay 561 | 20 329 212 Lost Part 40 | . 20 20 Squads Dispatched 6 | . 3 3 Investigation 4 | . 1 3 Extermination . | . . . Reinforcement 2 | . 2 . Assault . | . . . Garrison . | . . . Intercept . | . . . Searches Triggered . | . . . Construction Impeded . | . . . Haulers Reinforced . | . . . Active Scanning Responses . | . . . Cargo Convoy Interrupts . | . . . Stealth | -11 -10 -9 --------- Run | Yrd Mat Mat Distress Signals 2 | . 2 . Communications Jammed . | . . . Distress Signals . | . . . Times Spotted 38 | . 23 15 Peak Tracking Total 5 | . 5 4 Tactical Retreats 3 | . 1 2 Traps | -11 -10 -9 ------- Run | Yrd Mat Mat Traps Triggered 2 | . 1 1 Indirectly . | . . . Trap Hack Attempts . | . . . Triggered . | . . . Disarmed . | . . . Reprogrammed . | . . . Reused . | . . . Traps Extracted . | . . . Installed . | . . . Triggered . | . . . Machines | -11 -10 -9 ---------- Run | Yrd Mat Mat Machines Disabled 3 | . 2 1 Max in Single Turn 1 | . 1 1 Machines Repaired . | . . . Machines Dismantled . | . . . Machines Sabotaged . | . . . Overloaded Fab Kills . | . . . Hacking | -11 -10 -9 --------- Run | Yrd Mat Mat Machines Accessed 7 | . 4 3 Terminals 7 | . 4 3 Fabricators . | . . . Repair Stations . | . . . Recycling Units . | . . . Scanalyzers . | . . . Garrison Access . | . . . Total Hacks 23 | . 13 10 Successful 9 | . 4 5 Failed 14 | . 9 5 Catastrophic 2 | . 1 1 Database Lockouts . | . . . Manual 20 | . 13 7 Terminals 23 | . 13 10 Fabricators . | . . . Repair Stations . | . . . Recycling Units . | . . . Scanalyzers . | . . . Garrison Access . | . . . Terminal Hacks 5 | . 2 3 Prototype ID Bank 1 | . . 1 Terminal Index 3 | . 2 1 Zone Layout 1 | . . 1 Fabricator Hacks . | . . . Repair Station Hacks . | . . . Recycling Unit Hacks . | . . . Scanalyzer . | . . . Garrison Access Hacks . | . . . Unauthorized Hacks 4 | . 2 2 Terminals 4 | . 2 2 Botnet 4 | . 2 2 Fabricators . | . . . Repair Stations . | . . . Recycling Units . | . . . Scanalyzers . | . . . Garrison Access . | . . . Data Cores Recovered . | . . . Used . | . . . Hacking Detections 7 | . 4 3 Full Trace Events 4 | . 1 3 Feedback Events . | . . . Feedback Blocked . | . . . Robot Schematics Acquired . | . . . Robots Built . | . . . Authchips . | . . . Time . | . . . Total Robot Build Rating . | . . . Part Schematics Acquired . | . . . Parts Built . | . . . Authchips . | . . . Time . | . . . Total Part Build Rating . | . . . Part Studies Acquired . | . . . Parts Repaired . | . . . Time . | . . . Parts Recycled . | . . . Recycled Matter . | . . . Retrieved Matter . | . . . Retrieved Components . | . . . Parts Scanalyzed . | . . . Part Schematics Acquired . | . . . Parts Damaged . | . . . Bothacking | -11 -10 -9 ------------ Run | Yrd Mat Mat Used RIF Installer . | . . . Robots Hacked . | . . . Non-combat . | . . . Combat . | . . . Robot Hacks Applied . | . . . Relay Couplers Released . | . . . Fabnet Peak Effective % . | . . . Robots Rewired . | . . . Allies Hacked . | . . . Hacks Repelled . | . . . Allies | -11 -10 -9 -------- Run | Yrd Mat Mat Total Allies . | . . . Largest Group . | . . . Highest-Rated Group . | . . . Highest-Rated Ally . | . . . Total Orders . | . . . Ally Attacks . | . . . Total Damage . | . . . Kills . | . . . Allies Corrupted . | . . . Allies Melted . | . . . Intel | -11 -10 -9 ------- Run | Yrd Mat Mat Active Infowar (turns) 1404 | 44 864 496 Sensors 494 | . . 494 Structural 285 | . . 285 Seismic 910 | 44 864 2 Robot Analysis Total . | . . . Derelict Logs Recovered . | . . . Drone Launches . | . . . Drone Recoveries . | . . . Exploration | -11 -10 -9 ------------- Run | Yrd Mat Mat Turns Passed 1547 | 142 864 541 Spaces Moved 741 | 91 446 204 Core 20 | 20 . . Treads . | . . . Legs 721 | 71 446 204 Wheels . | . . . Hover . | . . . Flight . | . . . Fastest Speed 50 | 50 120 120 Average Speed 149 | 104 141 186 Slowest Speed 190 | 120 190 190 Overloaded Moves . | . . . Propulsion Burnouts . | . . . Robots Hopped . | . . . Potential Cave-ins . | . . . Cave-ins Triggered . | . . . Exploration Rate (%) 28 | 4 61 20 Regions Visited 2 Branch Regions . Pre-discovered Areas . | . . . Known Exits Taken . | . . . Unknown Exits Taken 2 | 1 1 . Scrap Searched . | . . . Spaces Dug 1 | . 1 . Terrain Destroyed 19 | . 4 15 Melee . | . . . Projectile 5 | . 1 4 AOE 14 | . 3 11 Terrain Rammed . | . . . Walls Destroyed . | . . . Machines Disabled . | . . . Actions | -11 -10 -9 --------- Run | Yrd Mat Mat Total 985 | 118 562 305 Wait 49 | 3 8 38 Move 739 | 90 445 204 Hop . | . . . Pick Up 29 | 8 15 6 Fast Attach 7 | 4 1 2 Attach 8 | 3 1 4 Detach . | . . . Swap 23 | . 14 9 Drop 22 | . 14 8 Fire 108 | 10 64 34 Melee . | . . . Ram . | . . . Kick . | . . . Crush . | . . . Escape Stasis . | . . . Rewire . | . . . Trap . | . . . Miscellaneous . | . . . Route ------- -11/Scrapyard -10/Materials (discovered 2 exits: *Mat / [*Min]) -9/Materials (discovered 3 exits: [*Min] / *Sto x2) History --------- Turn | Location | Event 12 | -11/Scrapyard | Discovered new exit (range 15) 143 | -11/Scrapyard | Entered Materials 315 | -10/Materials | Build established: Mutant 478 | -10/Materials | Discovered new exit (range 15) 737 | -10/Materials | Build established: Scavenger-Mutant 969 | -10/Materials | Discovered new exit (range 16) 1002 | -10/Materials | Core integrity fell below 50% 1007 | -10/Materials | Entered another Materials area 1007 | -9/Materials | Evolved 2 slots: Utility x2 1011 | -9/Materials | Discovered new exit (range 5) 1017 | -9/Materials | Identified exit to Storage 1110 | -9/Materials | Discovered exit to Storage (range 15) 1457 | -9/Materials | Discovered new exit (range 6) 1548 | -9/Materials | Self-destructed Last Messages --------------- 01472_ S-10 Pest destroyed. 01472_ U-05 Engineer destroyed. 01472_ Terrain Scan Processor melted. 01472_ U-05 Engineer destroyed. 01476_ U-05 Engineer builds a Wall. 01482_ U-05 Engineer lays Concrete. 01485_ U-05 Engineer builds a Wall. 01486_ Dropped Med. Storage Unit. 01489_ U-05 Engineer lays Concrete. 01490_ U-05 Engineer builds a Wall. 01491_ U-05 Engineer lays Concrete. 01493_ U-05 Engineer builds a Wall. 01493_ U-05 Engineer lays Concrete. 01496_ R-06 Scavenger collects Wheel. 01496_ U-05 Engineer lays Concrete. 01499_ U-05 Engineer builds a Door. 01499_ U-05 Engineer lays Concrete. 01518_ Dropped Seismic Detector. 01518_ Acquired Med. Armor Plating. 01548_ Connecting with Terminal... Map ----- +----------------------------------------------------+ | ?????????????????????????????????????????????????? | | ?????????????????????????????????????????????????? | | ?????????????????????????????????????????????????? | | ?????????????????????????????????????????????????? | | ?????????????????????????????????????????????????? | | ?????????????????????????????????????????????????? | | ?????????????????????????????????????????????????? | | ?????????????????????????????????????????????????? | | ?????????????????????????????????????????????????? | | ?????????????????????????????????????????????????? | | ?????????????????????????????????????????????????? | | ????????????????????????####?????????????????????? | | ????????######?????????? ??????????????????????? | | ????????# #??????????[ ??????????????????????? | | ????????# #?????????? ??????????????????????? | | ????????# ######?#+#?# #??????????????????????? | | ????????# # #?# #?# #??????????????????????? | | ????????# # ### ### ###???x????????????????? | | ????????# # ## #????????????????????? | | #######?# #! + +????????????????????? | | #""""""?# # ## #????????????????????? | | #" |"| "# #! ## ##+###????????????????????? | | #" "##+####+#### # #?????????????????????? | | !%[%=! # #?????????????????????? | | < =*== # #?????????????????????? | | % %= #"@ #?????????????????????? | | # ## ## #####T #?????????????????????? | | ######??##[## #???#" #?????????????????????? | | ????????##%##! !#???# #?????????????????????? | | ????????##%###!!!!##???#####?????????????????????? | | ????????##=########??????????????????????????????? | | ????????##=##????????????????????????????????????? | | ?????????#[##????????????????????????????????????? | | ?????????# ##????????????????????????????????????? | | ?????????# #?????????????????????????????????????? | | ?????????# #?????????????????????????????????????? | | ?????????# #?????????????????????????????????????? | | ?????????# #?????????????????????????????????????? | | ?????????# #?????????????????????????????????????? | | ?????????# #?????????????????????????????????????? | | ????????## ##????????????????????????????????????? | | ????????## ##????????????????????????????????????? | | ????????## ##????????????????????????????????????? | | ??####??## ##????????????????????????????????????? | | ?? #??## ##????????????????????????????????????? | | ?? #??## ##????????????????????????????????????? | | ?? #??## ##????????????????????????????????????? | | ?? #??## ##????????????????????????????????????? | | ?? #??## #####?????????????????????????????????? | | ?? #??##/#####?????????????????????????????????? | +----------------------------------------------------+ Best States ------------- Heat Dissipation 38 Energy Generation 10 Energy Capacity 250 Matter Stores 300 Matter Capacity 300 Sight Range 16 Robot Scan Range 14 Terrain Scan Density 10 Evasion (%) 55 Item Schematics ----------------- None Robot Schematics ------------------ None Fabricated ------------ Nothing Repaired ---------- Nothing Studied --------- None Alien Tech Used ----------------- None Achievements -------------- None Challenges ------------ None Game ------ Seed MyomerRegenerativeLauncher Manual? 0 Play Time 00:19:10 Cumulative 254.3 hours Start 2026.01.01 @ 17:27:23 End 2026.01.01 @ 22:58:42 Sessions 3 Manual Loads 0 Difficulty Rogue Special Mode None Game No. 485 Rogue 485 Adventurer 0 Explorer 0 Win Type - Total 1 Types 1/0/0/0/0/0/0/0/0/0 Lore% 30 Gallery% 47 Achievement% 27 Wizard Run 0 Options --------- Layout 1 ASCII 0 Keyboard 1 Movement Vi Keybinds 0 Fullscreen 0 Font 20/Smallcaps Map View 59x39 Zoom Use 0% Tactical HUD 1 Map Filters NONE Filters NONE Steam 1 RUN: dc300f20-1fa4-45b7-9026-607bb84a64b1